[Event "106th British-ch Major 2019"]
[Site "Torquay"]
[Date "2019.08.04"]
[Round "9.32"]
[White "Robertson, Jim"]
[Black "Howell, Oliver W"]
[Result "0-1"]
[ECO "A45"]
[WhiteElo "1580"]
[BlackElo "1797"]
[Annotator "NA"]
[PlyCount "92"]
[EventDate "2019.07.27"]
[EventType "swiss"]
[EventCountry "GBR"]
[SourceTitle "playchess.com"]
[Source "ChessBase"]
[SourceQuality "1"]
[TimeControl "40/5400+30:1800+30"]

1. d4 {[%emt 0:00:00]} Nf6 {[%emt 0:00:00]} 2. e3 {[%emt 0:00:00]} g6 {[%emt 0:00:00]} 3. f4 {[%emt 0:00:00]} Bg7 {[%emt 0:00:00]} 4. Nf3 {[%emt 0:00:00]} O-O {[%emt 0:00:11]} 5. c3 {[%emt 0:00:06]} d6 {[%emt 0:00:20]} 6. Bc4 {[%emt 0:00:33]} Nc6 {[%emt 0:04:25]} 7. Qe2 {[%emt 0:05:19]} e5 {[%emt 0:17:04]} 8. dxe5 {[%emt 0:00:10]} dxe5 {[%emt 0:00:15]} 9. e4 {[%emt 0:00:15]} exf4 {[%emt 0:01:57]} 10. Bxf4 {[%emt 0:01:32]} Nxe4 {[%emt 0:07:04]} 11. O-O {[%emt 0:19:01]} Nd6 {[%emt 0:10:31]} 12. Bxd6 {[%emt 0:05:46]} Qxd6 {[%emt 0:00:21]} 13. Nbd2 {[%emt 0:06:43]} Bg4 {[%emt 0:03:06]} 14. Ne4 {[%emt 0:04:27]} Qe7 {[%emt 0:00:35]} 15. Qc2 {[%emt 0:09:13]} Rae8 {[%emt 0:02:07]} 16. Bd5 {[%emt 0:09:03]} Bf5 {[%emt 0:02:00]} 17. Nfg5 {[%emt 0:10:21]} h6 {[%emt 0:09:31]} 18. g4 {[%emt 0:01:33]} Qxg5 {[%emt 0:04:25]} 19. Nxg5 {[%emt 0:07:24]} Bxc2 {[%emt 0:00:06]} 20. Nxf7 {[%emt 0:07:21]} Be4 {[%emt 0:01:49]} 21. Nxh6+ {[%emt 0:01:20]} Kh7 {[%emt 0:00:32]} 22. Rxf8 {[%emt 0:01:42]} Bxf8 {[%emt 0:01:39]} 23. Bxe4 {[%emt 0:06:00]} Rxe4 {[%emt 0:00:29]} 24. Nf7 {[%emt 0:00:20]} Rxg4+ {[%emt 0:00:15]} 25. Kh1 {[%emt 0:00:20]} Kg7 {[%emt 0:01:22]} 26. h3 {[%emt 0:00:23]} Rf4 {[%emt 0:00:22]} 27. Ng5 {[%emt 0:00:05]} Rf6 {[%emt 0:02:23]} 28. Re1 {[%emt 0:00:56]} Bd6 {[%emt 0:00:58]} 29. Ne4 {[%emt 0:01:40]} Re6 {[%emt 0:00:17]} 30. Kg2 {[%emt 0:00:01]} Ne7 {[%emt 0:00:48]} 31. Kf3 {[%emt 0:00:28]} Nd5 {[%emt 0:00:25]} 32. Rd1 {[%emt 0:00:40]} Nf6 {[%emt 0:00:56]} 33. Ng5 {[%emt 0:00:43]} Re5 {[%emt 0:00:26]} 34. h4 {[%emt 0:00:12]} Rf5+ {[%emt 0:00:14]} 35. Ke2 {[%emt 0:00:35]} Re5+ {[%emt 0:02:51]} 36. Kf3 {[%emt 0:00:11]} Nh7 {[%emt 0:02:58]} 37. Ne4 {[%emt 0:00:38]} Rf5+ {[%emt 0:02:57]} 38. Ke2 {[%emt 0:00:19]} Be5 {[%emt 0:01:30]} 39. Nc5 {[%emt 0:00:39]} Nf6 {[%emt 0:03:49]} 40. Nxb7 {[%emt 0:01:10]} Bg3 {[%emt 0:01:10]} 41. Rh1 {[%emt 0:05:14]} Rf2+ {[%emt 0:01:28]} 42. Kd3 {[%emt 0:00:08]} Rxb2 {[%emt 0:02:22]} 43. Nd8 {[%emt 0:00:06]} Rb6 {[%emt 0:01:05]} 44. Ke3 {[%emt 0:02:24]} c5 {[%emt 0:02:35]} 45. Kf3 {[%emt 0:00:32]} Bc7 {[%emt 0:00:48]} 46. Rd1 {[%emt 0:00:02]} Kf8 {[%emt 0:02:59]} 0-1

[Event "106th British-ch Major 2019"]
[Site "Torquay"]
[Date "2019.08.04"]
[Round "9.33"]
[White "Paulden, Tim"]
[Black "Liu, Jack"]
[Result "1/2-1/2"]
[ECO "B12"]
[WhiteElo "1902"]
[BlackElo "1259"]
[Annotator "NA"]
[PlyCount "79"]
[EventDate "2019.07.27"]
[EventType "swiss"]
[EventCountry "GBR"]
[SourceTitle "playchess.com"]
[Source "ChessBase"]
[SourceQuality "1"]
[TimeControl "40/5400+30:1800+30"]

1. e4 {[%emt 0:00:00]} c6 {[%emt 0:00:00]} 2. d4 {[%emt 0:00:00]} d5 {[%emt 0:00:00]} 3. e5 {[%emt 0:00:00]} c5 {[%emt 0:00:00]} 4. dxc5 {[%emt 0:00:00]} e6 {[%emt 0:00:00]} 5. Be3 {[%emt 0:00:00]} Nh6 {[%emt 0:00:07]} 6. c3 {[%emt 0:00:15]} Nf5 {[%emt 0:00:23]} 7. Bd4 {[%emt 0:00:10]} Bd7 {[%emt 0:00:20]} 8. Nf3 {[%emt 0:00:10]} Nc6 {[%emt 0:00:25]} 9. Bb5 {[%emt 0:00:21]} Nxe5 {[%emt 0:03:11]} 10. Nxe5 {[%emt 0:00:37]} Bxb5 {[%emt 0:00:55]} 11. a4 {[%emt 0:00:11]} Bd7 {[%emt 0:10:31]} 12. O-O {[%emt 0:00:31]} Qc7 {[%emt 0:03:32]} 13. b4 {[%emt 0:01:55]} a5 {[%emt 0:13:25]} 14. f4 {[%emt 0:10:27]} axb4 {[%emt 0:00:00]} 15. cxb4 {[%emt 0:00:30]} Nxd4 {[%emt 0:00:00]} 16. Qxd4 {[%emt 0:00:19]} Rxa4 {[%emt 0:03:00]} 17. Rxa4 {[%emt 0:00:14]} Bxa4 {[%emt 0:00:11]} 18. Nc3 {[%emt 0:00:05]} Bd7 {[%emt 0:02:48]} 19. Ra1 {[%emt 0:00:35]} f6 {[%emt 0:03:15]} 20. Nf3 {[%emt 0:01:31]} Kf7 {[%emt 0:13:40]} 21. Re1 {[%emt 0:03:21]} Be7 {[%emt 0:06:29]} 22. f5 {[%emt 0:00:59]} Qc6 {[%emt 0:02:23]} 23. fxe6+ {[%emt 0:02:44]} Bxe6 {[%emt 0:00:08]} 24. Qf4 {[%emt 0:03:03]} Bxc5+ {[%emt 0:16:33]} 25. bxc5 {[%emt 0:00:24]} Qxc5+ {[%emt 0:00:16]} 26. Qd4 {[%emt 0:01:10]} Rc8 {[%emt 0:00:58]} 27. Qxc5 {[%emt 0:00:29]} Rxc5 {[%emt 0:00:06]} 28. Ne2 {[%emt 0:00:20]} Bd7 {[%emt 0:03:23]} 29. Ned4 {[%emt 0:00:27]} Rc4 {[%emt 0:01:14]} 30. Kf2 {[%emt 0:00:48]} Rb4 {[%emt 0:02:31]} 31. Rc1 {[%emt 0:01:58]} Ke7 {[%emt 0:01:53]} 32. Ke3 {[%emt 0:00:53]} Rb2 {[%emt 0:01:24]} 33. g3 {[%emt 0:00:20]} g6 {[%emt 0:01:31]} 34. Re1 {[%emt 0:01:04]} Kd6 {[%emt 0:00:53]} 35. Kd3 {[%emt 0:00:18]} Ra2 {[%emt 0:03:04]} 36. Rb1 {[%emt 0:02:01]} Bc6 {[%emt 0:04:36]} 37. Rb3 {[%emt 0:01:35]} Rf2 {[%emt 0:01:40]} 38. Ke3 {[%emt 0:00:10]} Ra2 {[%emt 0:00:25]} 39. Kd3 {[%emt 0:00:08]} Rf2 {[%emt 0:00:17]} 40. Ke3 {[%emt 0:00:05]} 1/2-1/2

[Event "106th British-ch Major 2019"]
[Site "Torquay"]
[Date "2019.08.04"]
[Round "9.34"]
[White "Sheikh, Anum"]
[Black "Morgan, Jamie"]
[Result "1-0"]
[ECO "B34"]
[WhiteElo "1693"]
[BlackElo "1894"]
[Annotator "NA"]
[PlyCount "56"]
[EventDate "2019.07.27"]
[EventType "swiss"]
[EventCountry "GBR"]
[SourceTitle "playchess.com"]
[Source "ChessBase"]
[SourceQuality "1"]
[TimeControl "40/5400+30:1800+30"]

1. e4 {[%emt 0:45:42]} c5 {[%emt 0:00:10]} 2. Nf3 {[%emt 0:00:12]} g6 {[%emt 0:00:09]} 3. d4 {[%emt 0:00:12]} cxd4 {[%emt 0:00:09]} 4. Nxd4 {[%emt 0:00:24]} Nc6 {[%emt 0:00:14]} 5. Nb3 {[%emt 0:00:06]} Bg7 {[%emt 0:00:25]} 6. Nc3 {[%emt 0:00:11]} Nf6 {[%emt 0:00:23]} 7. Be2 {[%emt 0:00:10]} O-O {[%emt 0:00:27]} 8. O-O {[%emt 0:00:06]} a5 {[%emt 0:01:03]} 9. a4 {[%emt 0:00:06]} Nb4 {[%emt 0:00:31]} 10. Bg5 {[%emt 0:16:30]} d5 {[%emt 0:06:44]} 11. Bxf6 {[%emt 0:00:51]} Bxf6 {[%emt 0:05:47]} 12. exd5 {[%emt 0:00:40]} Bf5 {[%emt 0:01:35]} 13. Qd2 {[%emt 0:40:19]} Bxc2 {[%emt 0:20:19]} 14. Nd4 {[%emt 0:07:36]} Bxd4 {[%emt 0:01:40]} 15. Qxd4 {[%emt 0:00:44]} Bb3 {[%emt 0:00:47]} 16. Qe5 {[%emt 0:07:49]} Nxd5 {[%emt 0:16:38]} 17. Bf3 {[%emt 0:11:30]} Nxc3 {[%emt 0:12:02]} 18. Qxc3 {[%emt 0:01:21]} Qb6 {[%emt 0:01:00]} 19. Ra3 {[%emt 0:03:22]} Be6 {[%emt 0:00:43]} 20. Re1 {[%emt 0:02:17]} Rac8 {[%emt 0:01:23]} 21. Qd2 {[%emt 0:02:20]} Rfd8 {[%emt 0:01:57]} 22. Qe2 {[%emt 0:00:44]} Qb4 {[%emt 0:02:17]} 23. Rc3 {[%emt 0:02:21]} Rxc3 {[%emt 0:04:28]} 24. bxc3 {[%emt 0:00:06]} Qxc3 {[%emt 0:00:41]} 25. Bxb7 {[%emt 0:00:10]} Rd2 {[%emt 0:01:54]} 26. Qf3 {[%emt 0:01:32]} Ra2 {[%emt 0:01:17]} 27. Qxc3 {[%emt 0:00:30]} Rd2 {[%emt 0:00:03]} 28. Qf3 Ra2 {[%emt 0:00:21]} 1-0

[Event "106th British-ch Major 2019"]
[Site "Torquay"]
[Date "2019.08.04"]
[Round "9.35"]
[White "Hilton, Tim"]
[Black "May, Paul"]
[Result "1-0"]
[ECO "B23"]
[WhiteElo "1892"]
[BlackElo "1832"]
[Annotator "NA"]
[PlyCount "61"]
[EventDate "2019.07.27"]
[EventType "swiss"]
[EventCountry "GBR"]
[SourceTitle "playchess.com"]
[Source "ChessBase"]
[SourceQuality "1"]
[TimeControl "40/5400+30:1800+30"]

1. e4 {[%emt 0:03:00]} c5 {[%emt 0:00:00]} 2. Nc3 {[%emt 0:00:07]} a6 {[%emt 0:00:00]} 3. f4 {[%emt 0:00:14]} b5 {[%emt 0:04:04]} 4. a4 {[%emt 0:00:43]} b4 {[%emt 0:00:18]} 5. Nce2 {[%emt 0:00:10]} Bb7 {[%emt 0:00:44]} 6. d3 {[%emt 0:00:14]} e6 {[%emt 0:04:17]} 7. Nf3 {[%emt 0:01:29]} d5 {[%emt 0:01:46]} 8. e5 {[%emt 0:00:19]} Ne7 {[%emt 0:00:41]} 9. d4 {[%emt 0:01:11]} c4 {[%emt 0:02:24]} 10. Be3 {[%emt 0:00:44]} Nbc6 {[%emt 0:01:31]} 11. g3 {[%emt 0:02:05]} Nf5 {[%emt 0:03:05]} 12. Bf2 {[%emt 0:00:05]} Be7 {[%emt 0:00:17]} 13. Bg2 {[%emt 0:00:13]} Na5 {[%emt 0:05:32]} 14. O-O {[%emt 0:00:55]} h5 {[%emt 0:01:38]} 15. h3 {[%emt 0:00:47]} g5 {[%emt 0:03:12]} 16. g4 {[%emt 0:01:15]} hxg4 {[%emt 0:00:57]} 17. hxg4 {[%emt 0:00:06]} Nh4 {[%emt 0:01:39]} 18. Nxh4 {[%emt 0:00:21]} gxh4 {[%emt 0:00:24]} 19. Bh3 {[%emt 0:00:24]} Kd7 {[%emt 0:02:52]} 20. Qe1 {[%emt 0:01:54]} Nc6 {[%emt 0:01:30]} 21. g5 {[%emt 0:02:10]} Rh7 {[%emt 0:05:37]} 22. Kh2 {[%emt 0:01:21]} Qh8 {[%emt 0:01:48]} 23. Rg1 {[%emt 0:00:26]} Rg8 {[%emt 0:02:16]} 24. Rg4 {[%emt 0:00:17]} Qg7 {[%emt 0:05:54]} 25. Ng1 {[%emt 0:01:12]} Qg6 {[%emt 0:01:16]} 26. Rc1 {[%emt 0:01:56]} Qf5 {[%emt 0:16:11]} 27. Nf3 {[%emt 0:01:27]} Bxg5 {[%emt 0:03:29]} 28. Nxg5 {[%emt 0:00:43]} Rh6 {[%emt 0:06:07]} 29. Qe3 {[%emt 0:02:06]} Ne7 {[%emt 0:05:02]} 30. Rgg1 {[%emt 0:00:25]} Qg6 {[%emt 0:00:42]} 31. Nxe6 {[%emt 0:00:54]} 1-0

[Event "106th British-ch Major 2019"]
[Site "Torquay"]
[Date "2019.08.04"]
[Round "9.36"]
[White "Donnelly, Andrew J"]
[Black "Renshaw, Lucas"]
[Result "1-0"]
[ECO "C00"]
[WhiteElo "1385"]
[BlackElo "1596"]
[Annotator "NA"]
[PlyCount "53"]
[EventDate "2019.07.27"]
[EventType "swiss"]
[EventCountry "GBR"]
[SourceTitle "playchess.com"]
[Source "ChessBase"]
[SourceQuality "1"]
[TimeControl "40/5400+30:1800+30"]

1. e4 {[%emt 0:00:00]} e6 {[%emt 0:00:00]} 2. d3 {[%emt 0:00:00]} d5 {[%emt 0:00:00]} 3. Nd2 {[%emt 0:00:12]} c5 {[%emt 0:00:53]} 4. g3 {[%emt 0:01:03]} Nc6 {[%emt 0:00:56]} 5. Bg2 {[%emt 0:01:06]} Nf6 {[%emt 0:01:28]} 6. Ne2 {[%emt 0:01:48]} Be7 {[%emt 0:02:47]} 7. O-O {[%emt 0:01:39]} O-O {[%emt 0:00:19]} 8. c3 {[%emt 0:04:13]} e5 {[%emt 0:03:59]} 9. h3 {[%emt 0:06:29]} dxe4 {[%emt 0:10:18]} 10. dxe4 {[%emt 0:06:46]} Qc7 {[%emt 0:01:32]} 11. Qc2 {[%emt 0:01:40]} b6 {[%emt 0:05:47]} 12. Nf3 {[%emt 0:04:51]} Ba6 {[%emt 0:02:17]} 13. Bg5 {[%emt 0:06:08]} Rfd8 {[%emt 0:03:42]} 14. Rfd1 {[%emt 0:04:52]} Rac8 {[%emt 0:01:41]} 15. g4 {[%emt 0:04:33]} Ne8 {[%emt 0:04:05]} 16. Ng3 {[%emt 0:02:16]} g6 {[%emt 0:01:43]} 17. Bh6 {[%emt 0:10:50]} Ng7 {[%emt 0:03:44]} 18. Nf1 {[%emt 0:02:51]} Bxf1 {[%emt 0:07:26]} 19. Bxf1 {[%emt 0:01:02]} Ne6 {[%emt 0:08:48]} 20. Bc4 {[%emt 0:01:41]} Nf4 {[%emt 0:08:25]} 21. Kh2 {[%emt 0:02:30]} Na5 {[%emt 0:01:15]} 22. Ba6 {[%emt 0:07:28]} Rb8 {[%emt 0:00:34]} 23. Bf1 {[%emt 0:01:35]} Bf6 {[%emt 0:05:19]} 24. Qa4 {[%emt 0:01:51]} c4 {[%emt 0:04:00]} 25. Rxd8+ {[%emt 0:05:13]} Rxd8 {[%emt 0:01:34]} 26. Rd1 {[%emt 0:00:07]} Rxd1 {[%emt 0:01:03]} 27. Qe8# {[%emt 0:00:45] Rd8 Qa4 Rd1 Qe8#} 1-0

[Event "106th British-ch Major 2019"]
[Site "Torquay"]
[Date "2019.08.04"]
[Round "9.37"]
[White "Lim, Mark"]
[Black "Cowan, Richard M"]
[Result "1-0"]
[ECO "B13"]
[WhiteElo "1822"]
[BlackElo "1931"]
[Annotator "NA"]
[PlyCount "105"]
[EventDate "2019.07.27"]
[EventType "swiss"]
[EventCountry "GBR"]
[SourceTitle "playchess.com"]
[Source "ChessBase"]
[SourceQuality "1"]
[TimeControl "40/5400+30:1800+30"]

1. e4 {[%emt 0:00:00]} c6 {[%emt 0:09:54]} 2. d4 {[%emt 0:00:00]} d5 3. exd5 {[%emt 0:00:00]} cxd5 {[%emt 0:00:09]} 4. Bd3 {[%emt 0:00:00]} Nc6 {[%emt 0:00:05]} 5. c3 {[%emt 0:00:00]} Qc7 {[%emt 0:00:04]} 6. h3 {[%emt 0:00:00]} g6 {[%emt 0:01:06]} 7. Ne2 {[%emt 0:06:27]} Bf5 {[%emt 0:11:24]} 8. Bxf5 {[%emt 0:00:00]} gxf5 {[%emt 0:00:07]} 9. O-O {[%emt 0:00:00]} Nf6 {[%emt 0:00:21]} 10. Bf4 {[%emt 0:00:00]} Qd7 {[%emt 0:00:14]} 11. Nd2 {[%emt 0:03:15]} Rg8 {[%emt 0:04:19]} 12. Nf3 {[%emt 0:04:30]} Ne4 {[%emt 0:02:32]} 13. b4 {[%emt 0:08:18]} Bg7 {[%emt 0:14:07]} 14. a4 {[%emt 0:02:53]} Rc8 {[%emt 0:05:54]} 15. Qd3 {[%emt 0:03:35]} e6 {[%emt 0:01:56]} 16. a5 {[%emt 0:02:42]} Ne7 {[%emt 0:01:48]} 17. Ne5 {[%emt 0:06:32]} Bxe5 18. Bxe5 Ng6 {[%emt 0:01:00]} 19. Rfc1 {[%emt 0:21:37]} Rc4 {[%emt 0:07:29]} 20. f3 Ng5 21. Kf2 Qe7 22. Rh1 Nxe5 23. dxe5 f6 24. Qe3 a6 {[%emt 0:02:30]} 25. h4 {[%emt 0:16:11]} Nf7 {[%emt 0:19:10]} 26. exf6 {[%emt 0:15:02]} Qxf6 {[%emt 0:00:10]} 27. g3 {[%emt 0:03:08]} Ne5 {[%emt 0:02:23]} 28. Rad1 {[%emt 0:01:53]} Kd7 {[%emt 0:01:37]} 29. Rd4 {[%emt 0:02:27]} Kc8 {[%emt 0:00:26]} 30. Rxc4+ {[%emt 0:00:46]} Nxc4 {[%emt 0:00:14]} 31. Qc5+ {[%emt 0:01:16]} Kb8 {[%emt 0:00:06]} 32. Qd4 {[%emt 0:00:29]} Qg6 {[%emt 0:00:26]} 33. h5 {[%emt 0:00:43]} Qf7 {[%emt 0:00:53]} 34. Qc5 {[%emt 0:02:54]} Rc8 {[%emt 0:02:46]} 35. Qd4 {[%emt 0:00:17]} e5 {[%emt 0:00:11]} 36. Qh4 {[%emt 0:00:26]} e4 {[%emt 0:02:30]} 37. Qf4+ {[%emt 0:00:33]} Ka8 {[%emt 0:00:21]} 38. g4 {[%emt 0:00:22]} e3+ {[%emt 0:00:43]} 39. Kg3 {[%emt 0:01:37]} Rg8 {[%emt 0:01:02]} 40. Nd4 {[%emt 0:01:22]} Rf8 {[%emt 0:05:55]} 41. Nxf5 {[%emt 0:01:15]} Qd7 {[%emt 0:01:24]} 42. Re1 {[%emt 0:03:38]} Nd2 {[%emt 0:12:46]} 43. Qxe3 {[%emt 0:05:00]} Qc7+ {[%emt 0:00:50]} 44. Kh3 {[%emt 0:01:34]} Nc4 {[%emt 0:07:11]} 45. Qe7 {[%emt 0:01:17]} Qc8 {[%emt 0:00:49]} 46. Nd4 {[%emt 0:02:49]} Nd2 {[%emt 0:01:00]} 47. Kg3 {[%emt 0:06:26]} Qb8+ {[%emt 0:01:52]} 48. Kg2 {[%emt 0:01:55]} Qc8 {[%emt 0:01:13]} 49. Qc5 {[%emt 0:02:36]} Qd8 {[%emt 0:10:06]} 50. Ne6 {[%emt 0:02:14]} Nxf3 {[%emt 0:01:01]} 51. Nxd8 {[%emt 0:00:57]} Nxe1+ {[%emt 0:00:07]} 52. Kg3 {[%emt 0:01:50]} Rxd8 {[%emt 0:02:32]} 53. Qe7 {[%emt 0:00:17]} 1-0